Cogmind - Beta 15 @@@ ROGUE MODE // 2025.05.12 @ 23:01:39 Player: Sunvar Result: Smashed by cave-in Performance ------------- Evolutions (0) 0 Regions Visited (2) 400 Robots Destroyed (20) 100 Value Destroyed (487) 487 Prototype IDs (4) 80 Alien Tech Used (0) 0 Bonus (0) 0 TOTAL SCORE: 1067 Bonus ------- None Cogmind --------- Core Integrity 0/250 Matter 181/300 Energy 100/100 System Corruption 1% Temperature Cool (0) Movement Rolling (110) Location -10/Subcaves Parts ------- > --- POWER (1) -------- (None) > --- PROPULSION (2) --- Subdweller Monowheel > --- UTILITY (2) ------ Small Storage Unit Makeshift Light Armor Plating > --- WEAPON (2) ------- Barrage Gun Hammer > --- INVENTORY (8) ---- Subdweller Monowheel Machine Analyzer Subdweller Optics Light Armor Plating Subdweller Laser Subdweller Beam Cannon Subdweller Machine Gun Battle Cannon Peak State ------------ > --- POWER ------------ Ion Engine > --- PROPULSION ------- Light Treads Spiked Treads > --- UTILITY ---------- Small Storage Unit Makeshift Light Armor Plating > --- WEAPON ----------- Barrage Gun Battle Cannon > --- INVENTORY -------- Light Treads Subdweller Monowheel Subdweller Monowheel Subdweller Monowheel Light Armor Plating Subdweller Machine Gun Battle Cannon Hammer [Rating: 15] Favorites ----------- Power Light Ion Engine Engine Light Ion Engine Propulsion Light Treads Treads Light Treads Wheel Subdweller Monowheel Utility Small Storage Unit Device Seismic Detector Storage Small Storage Unit Protection Makeshift Light Armor Plating Weapon Barrage Gun Energy Gun Small Laser Ballistic Gun Barrage Gun Ballistic Cannon Battle Cannon Launcher Grenade Launcher Impact Weapon Hammer Build | -11 -10 -10 ------- Run | Yrd Mat Sub Slots Evolved . | . . . Power . | . . . Propulsion . | . . . Utility . | . . . Weapon . | . . . Parts Attached 23 | 7 3 13 Power 2 | 1 . 1 Engine 2 | 1 . 1 Core . | . . . Reactor . | . . . Propulsion 7 | 2 . 5 Treads 3 | 2 . 1 Leg . | . . . Wheel 4 | . . 4 Hover . | . . . Flight . | . . . Utility 5 | 2 . 3 Device 2 | 1 . 1 Storage 1 | 1 . . Processor . | . . . Hackware . | . . . Protection 2 | . . 2 Artifact . | . . . Weapon 9 | 2 3 4 Energy Gun 1 | 1 . . Energy Cannon . | . . . Ballistic Gun 4 | 1 1 2 Ballistic Cannon 2 | . . 2 Launcher 1 | . 1 . Special Weapon . | . . . Impact Weapon 1 | . 1 . Slashing Weapon . | . . . Piercing Weapon . | . . . Special Melee Weapon . | . . . Unidentified Prototypes . | . . . Parts Lost 6 | . . 6 Power 2 | . . 2 Propulsion 2 | . . 2 Utility . | . . . Weapon 2 | . . 2 Highest Loss Streak 2 | . . 2 To Critical Strikes . | . . . Average Backups 7 | 3 7 7 Power . | 1 1 . Propulsion 2 | 1 1 2 Utility 1 | . 2 1 Weapon 3 | . 3 3 Tool/Special . | . . . Unused Backups 16 | . 6 10 Power 2 | . 2 . Propulsion 4 | . 1 3 Utility 4 | . 2 2 Weapon 6 | . 1 5 Tool/Special . | . . . Average Slot Usage (%) 92 | . 100 89 Engine 6 | . 14 4 Treads 21 | . 28 19 Wheel 6 | . . 8 Device 5 | . 14 2 Storage 14 | . 14 14 Protection 8 | . . 11 Ballistic Gun 16 | . 21 14 Ballistic Cannon 3 | . . 5 Impact Weapon 7 | . 3 8 Peak Build Rating 15 | 8 8 15 Average Rating 10 | 5 7 12 On Entrance 5 | . 8 7 Naked Turns . | . . . Heaviest Build 20 | 12 14 20 Greatest Support 40 | 40 40 40 Greatest Overweight (x) . | . . . Average Overweight (x) . | . . . Largest Inventory Capacity 8 | 8 8 8 Average Capacity 7 | 7 8 8 Most Carried 8 | 8 8 8 Average Carried 7 | 3 7 7 Final Capacity 8 | 8 8 8 Final Carried 8 | 8 8 8 Class Distribution -------------------- 76% | Mutant 23% | Derelict-Mutant Dominant Class ---------------- Mutant | -10/Materials Mutant | -10/Subcaves Resources | -11 -10 -10 ----------- Run | Yrd Mat Sub Matter Collected 770 | 288 30 452 Remotely . | . . . Salvage Created 443 | 120 76 247 Parts 44 | 12 13 19 Haulers Intercepted . | . . . Recyclers Shooed 1 | 1 . . Parts Field Recycled . | . . . Retrieved Matter . | . . . Parts Self-Destructed . | . . . Prevented . | . . . Kills | -11 -10 -10 ------- Run | Yrd Mat Sub Combat Hostiles Destroyed 16 | . 6 10 Guns 7 | . 3 4 Cannons 4 | . . 4 AOE 5 | . 3 2 Classes Destroyed 4 | 2 1 1 Tunneler 3 | 3 . . Recycler 1 | 1 . . Swarmer 6 | . 6 . Subdweller 10 | . . 10 Best Kill Streak 4 | 4 3 3 Combat Bots Only 3 | . 3 3 Max Kills in Single Turn 2 | 1 2 2 Gunslinging . | . . . Exploded 2 | . 2 2 Melee . | . . . Uniques/NPCs Destroyed . | . . . Combat | -11 -10 -10 -------- Run | Yrd Mat Sub Hostile Shots Fired 81 | . 25 56 Missed 20 | . 6 14 Hits 61 | . 19 42 Projectile 61 | . 19 42 Critical Strikes 3 | . 1 2 Damage Taken 1345 | . 146 1199 Core 270 | . 23 247 Absorbed by Shields . | . . . Core Remaining (%) 100 | 100 . . Volleys Fired 59 | 6 9 44 Largest 2 | 2 2 2 Hottest 61 | 60 60 61 Shots Fired 101 | 12 15 74 Gun 69 | 12 13 44 Cannon 25 | . . 25 Launcher 7 | . 2 5 Special . | . . . Kinetic 84 | 6 9 69 Thermal 10 | 6 4 . Explosive 7 | . 2 5 Electromagnetic . | . . . Robot Hit Streak 12 | 4 2 12 Robot Miss Streak 3 | 1 3 2 Penetration Max . | . . . Secondary Targets . | . . . Shots Hit Robots 77 | 9 6 62 Core Hits 32 | 5 7 20 Critical Kills . | . . . Critical Parts Destroyed . | . . . Critical Strikes 2 | . . 2 Blast 2 | . . 2 Melee Attacks 74 | . 4 70 Impact 74 | . 4 70 Slashing . | . . . Piercing . | . . . Sneak Attacks . | . . . Combat Hostiles . | . . . Follow-up Attacks . | . . . Damage Inflicted 1766 | 109 156 1501 Guns 773 | 109 73 591 Cannons 342 | . . 342 Explosions 627 | . 80 547 Melee 21 | . . 21 Ramming 3 | . 3 . Kinetic 1050 | 65 52 933 Thermal 65 | 44 21 . Explosive 627 | . 80 547 Electromagnetic . | . . . Impact 21 | . . 21 Slashing . | . . . Piercing . | . . . Highest Corruption . | . . . Average Corruption . | . . . Corruption Purged . | . . . Corruption Blocked . | . . . Overload Shots . | . . . Overflow Damage 3 | . . 3 Projectiles . | . . . Explosions 3 | . . 3 Melee . | . . . Knockbacks 1 | . . 1 Impact . | . . . Kinetic 1 | . . 1 Secondary . | . . . Self-Inflicted Damage 52 | . . 52 Shots 3 | . . 3 Rammed 1 | . 1 . Targets Rammed 1 | . 1 . Kicked . | . . . Crushed . | . . . Highest Temperature 1 | . . 1 Average Temperature 1 | . . 1 Received Heat Transfer 162 | . . 162 Siege Activations . | . . . Martial Activations . | . . . Shielding Activations . | . . . Robots Disrupted . | . . . Combat Hostiles . | . . . Robots Corrupted . | . . . Combat Hostiles . | . . . Parts Fried . | . . . Impact Corruptions . | . . . Robots Melted . | . . . Combat Hostiles . | . . . Parts Melted . | . . . Heat Transferred 150 | 100 50 . Parts Sabotaged . | . . . Parts Stolen . | . . . Parts Stripped . | . . . Power Chain Reactions . | . . . Alert | -11 -10 -10 ------- Run | Yrd Mat Sub Maximum Alert Level . | . . . Low Security (%) 100 | 100 100 . Level 1 . | . . . Level 2 . | . . . Level 3 . | . . . Level 4 . | . . . Level 5 . | . . . High Security . | . . . Max Security . | . . . Peak Influence 97 | 15 97 . Initial . | . . . Average 27 | 2 33 . Influence Increases 211 | 20 191 . Destroy 0b10 Robot/C 120 | . 120 . Destroy 0b10 Robot/NC 20 | 20 . . Destroy Leader 20 | . 20 . Successful Hack 18 | . 18 . Destroy Structure 3 | . 3 . Lose Combat Pursuer 30 | . 30 . Influence Decreases 211 | 20 184 7 Entered New Map 4 | . . 4 Time Decay 207 | 20 184 3 Squads Dispatched 1 | . 1 . Investigation . | . . . Extermination . | . . . Reinforcement 1 | . 1 . Assault . | . . . Garrison . | . . . Intercept . | . . . Searches Triggered . | . . . Construction Impeded . | . . . Haulers Reinforced . | . . . Active Scanning Responses . | . . . Cargo Convoy Interrupts . | . . . Stealth | -11 -10 -10 --------- Run | Yrd Mat Sub Distress Signals 1 | . 1 . Communications Jammed . | . . . Distress Signals . | . . . Times Spotted 22 | . 9 13 Peak Tracking Total 3 | . 3 3 Tactical Retreats 5 | . 2 3 Traps | -11 -10 -10 ------- Run | Yrd Mat Sub Traps Triggered . | . . . Indirectly . | . . . Trap Hack Attempts . | . . . Triggered . | . . . Disarmed . | . . . Reprogrammed . | . . . Reused . | . . . Traps Extracted . | . . . Installed . | . . . Triggered . | . . . Machines | -11 -10 -10 ---------- Run | Yrd Mat Sub Machines Disabled . | . . . Max in Single Turn . | . . . Machines Repaired . | . . . Machines Dismantled . | . . . Machines Sabotaged . | . . . Overloaded Fab Kills . | . . . Hacking | -11 -10 -10 --------- Run | Yrd Mat Sub Machines Accessed 4 | . 4 . Terminals 4 | . 4 . Fabricators . | . . . Repair Stations . | . . . Recycling Units . | . . . Scanalyzers . | . . . Garrison Access . | . . . Total Hacks 16 | . 16 . Successful 8 | . 8 . Failed 8 | . 8 . Catastrophic . | . . . Database Lockouts . | . . . Manual 9 | . 9 . Terminals 16 | . 16 . Fabricators . | . . . Repair Stations . | . . . Recycling Units . | . . . Scanalyzers . | . . . Garrison Access . | . . . Terminal Hacks 5 | . 5 . Prototype ID Bank 2 | . 2 . Terminal Index 1 | . 1 . Locate Traps 1 | . 1 . Registered Components 1 | . 1 . Fabricator Hacks . | . . . Repair Station Hacks . | . . . Recycling Unit Hacks . | . . . Scanalyzer . | . . . Garrison Access Hacks . | . . . Unauthorized Hacks 3 | . 3 . Terminals 3 | . 3 . Botnet 3 | . 3 . Fabricators . | . . . Repair Stations . | . . . Recycling Units . | . . . Scanalyzers . | . . . Garrison Access . | . . . Data Cores Recovered . | . . . Used . | . . . Hacking Detections 4 | . 4 . Full Trace Events . | . . . Feedback Events . | . . . Feedback Blocked . | . . . Robot Schematics Acquired . | . . . Robots Built . | . . . Authchips . | . . . Time . | . . . Total Robot Build Rating . | . . . Part Schematics Acquired . | . . . Parts Built . | . . . Authchips . | . . . Time . | . . . Total Part Build Rating . | . . . Parts Repaired . | . . . Time . | . . . Parts Recycled . | . . . Recycled Matter . | . . . Retrieved Matter . | . . . Retrieved Components . | . . . Parts Scanalyzed . | . . . Part Schematics Acquired . | . . . Parts Damaged . | . . . Bothacking | -11 -10 -10 ------------ Run | Yrd Mat Sub Used RIF Installer . | . . . Robots Hacked . | . . . Non-combat . | . . . Combat . | . . . Robot Hacks Applied . | . . . Relay Couplers Released . | . . . Fabnet Peak Effective % . | . . . Robots Rewired . | . . . Allies Hacked . | . . . Hacks Repelled . | . . . Allies | -11 -10 -10 -------- Run | Yrd Mat Sub Total Allies . | . . . Largest Group . | . . . Highest-Rated Group . | . . . Highest-Rated Ally . | . . . Total Orders . | . . . Ally Attacks . | . . . Total Damage . | . . . Kills . | . . . Allies Corrupted . | . . . Allies Melted . | . . . Intel | -11 -10 -10 ------- Run | Yrd Mat Sub Active Infowar (turns) 802 | 50 521 231 Seismic 802 | 50 521 231 Robot Analysis Total . | . . . Derelict Logs Recovered 1 | . . 1 Drone Launches . | . . . Drone Recoveries . | . . . Exploration | -11 -10 -10 ------------- Run | Yrd Mat Sub Turns Passed 2131 | 131 521 1479 Spaces Moved 1168 | 61 287 820 Core 2 | 2 . . Treads 669 | 59 287 323 Legs . | . . . Wheels 497 | . . 497 Hover . | . . . Flight . | . . . Fastest Speed 50 | 50 160 110 Average Speed 138 | 156 160 129 Slowest Speed 160 | 160 160 160 Overloaded Moves . | . . . Propulsion Burnouts . | . . . Robots Hopped . | . . . Potential Cave-ins 2 | . . 2 Cave-ins Triggered 1 | . . 1 Exploration Rate (%) 25 | 5 42 30 Regions Visited 2 Branch Regions 1 Pre-discovered Areas . | . . . Known Exits Taken . | . . . Unknown Exits Taken 2 | 1 1 . Scrap Searched 5 | . . 5 Spaces Dug 18 | . 2 16 Terrain Destroyed 31 | . 3 28 Melee 18 | . 2 16 Projectile . | . . . AOE 13 | . 1 12 Terrain Rammed . | . . . Walls Destroyed . | . . . Machines Disabled . | . . . Actions | -11 -10 -10 --------- Run | Yrd Mat Sub Total 1456 | 81 328 1047 Wait 71 | . 11 60 Move 1166 | 60 286 820 Hop . | . . . Pick Up 28 | 8 6 14 Fast Attach 10 | 7 1 2 Attach 4 | . . 4 Detach 1 | . . 1 Swap 19 | . 3 16 Drop 23 | . 7 16 Fire 59 | 6 9 44 Melee 74 | . 4 70 Ram . | . . . Kick . | . . . Crush 1 | . 1 . Escape Stasis . | . . . Rewire . | . . . Trap . | . . . Miscellaneous . | . . . Route ------- -11/Scrapyard -10/Materials (discovered 2 exits: [*Mat] / [*Sub]) -10/Subcaves History --------- Turn | Location | Event 34 | -11/Scrapyard | Discovered new exit (range 16) 132 | -11/Scrapyard | Entered Materials 331 | -10/Materials | Build established: Mutant 361 | -10/Materials | Discovered new exit (range 16) 570 | -10/Materials | Discovered new exit (range 5) 653 | -10/Materials | Entered Subcaves 654 | -10/Subcaves | Approached by a straggling Scientist 679 | -10/Subcaves | Learned Materials machine intel 724 | -10/Subcaves | Shifting Twisted Machinery released Sub. Monowheel 787 | -10/Subcaves | Core integrity fell below 50% 1012 | -10/Subcaves | Shifting Twisted Machinery released Mak. Light Armor Plating 1204 | -10/Subcaves | Core integrity fell below 20% 1380 | -10/Subcaves | Build established: Derelict-Mutant 1686 | -10/Subcaves | Build established: Mutant 1775 | -10/Subcaves | A swath of the cavern ceiling suddenly collapsed 2133 | -10/Subcaves | Crushed by falling debris 2133 | -10/Subcaves | Smashed by cave-in Last Messages --------------- 01692_ Dropped Broken Sub. Monowheel. 01697_ Acquired Battle Cannon. 01750_ WA-4TG(u) builds Twisted Machinery. A swath of the cavern ceiling suddenly collapses. 01871_ Sub. Monowheel shoots sparks and powers down. 01914_ WA-4TG(u) builds Twisted Machinery. 01973_ Dropped Broken Sub. Monowheel. 01974_ Acquired Sub. Optics. 02010_ Acquired 46 matter. 02012_ Dropped Spk. Treads. 02013_ Acquired Sub. Monowheel. 02015_ Acquired 2 matter. 02080_ IM-QC8(u) tweaks Twisted Machinery. 02091_ IM-QC8(u) builds Twisted Machinery. 02124_ IM-QC8(u) tweaks Twisted Machinery. 02125_ IM-QC8(u) builds Twisted Machinery. 02133_ The unstable cave ceiling collapses. 02133_ Crushed by falling debris. 02133_ Sub. Monowheel destroyed. 02133_ System corrupted by crushing effect (+1). Map ----- +----------------------------------------------------+ | ####"##??????## #???????????## ""##" "##? | | ##???????# #????????????# "##" ""#? | | #????????## ##????????????## #### "#? | | #"#????????# ### #####??????????????##"##" ##? | | ######????????###?###???????????????????## #? | | ?????????????????????????????????????????## ##? | | ??????????????????????????????????????????#### #? | | ?????????????????????????????????????????????# ## | | ????????????????????????????????????????????## # | | ?????????????????????????????????????????##?#""### | | ??###########???????????????????????????##"##""### | | ### " " ##??????????????????????????#"#"""#""# | | # """ " ##??????????????????????????#""#""##" | | # %[ ####" "#?????????????????????????##"#"""##" | | " &[ #??## "#?????????????????????????#""""#"##" | | " % ["##???# #????????????????????????##"""#"#""" | | #""""##??### #????????????????????????#""#####"## | | ######???#"" ^#????????????????????????#"## #""# | | ##########"" ##???????????????????????##""# ###""" | | # "# ###???????????????????????#"####??#""# | | # " ##" "#???????????????????????###?????#### | | ## &"## "##["#??????????????????????????????????# | | # #" "#####??????????????????????????????????? | | " #######?####??##?????????????????????? | | & ### ### #?????????????????????? | | ##### #@#??????????????????????? | | "" ## ##??????????????????????? | | # " #" " " ""#???????????????????????? | | ="" ## """### ""#???????????????????????? | | " ###### ###" "## ""#???????????????????????? | | #????## #?# ### "" #??????????????????????? | | #???### #?# #?# "###??????????????????????? | | ##?### ##### ####"##????????????????????????? | | ##??# #### "####?????????????????????????? | | #???# ## " ####???????????????????????? | | ##???# "" ""##??????????????????????? | | #???## " """#??????????????????????? | | ##?## ## """" #??????????????????????? | | ### ###### """" #??????????????????????? | | #????## ####" #??????????????????????? | | # ## ####?????# "##???" #??????????????????????? | | ########????????##"#?????##??????????????????????? | | ?????????????????###?????????????????????????????? | | ?????????????????????????????????????????????????? | | ?????????????????????????????????????????????????? | | ?????????????????????????????????????????????????? | | ?????????????????????????????????????????????????? | | ?????????????????????????????????????????????????? | | ?????????????????????????????????????????????????? | | ?????????????????????????????????????????????????? | +----------------------------------------------------+ Best States ------------- Heat Dissipation 25 Energy Generation 10 Energy Capacity 250 Matter Stores 300 Matter Capacity 300 Sight Range 16 Terrain Scan Density 10 Armor Coverage 150 Evasion (%) 40 Recoil Reduction 2 Item Schematics ----------------- None Robot Schematics ------------------ None Fabricated ------------ Nothing Repaired ---------- Nothing Alien Tech Used ----------------- None Achievements -------------- None Challenges ------------ None Game ------ Seed MeleeCorruptionClaymores Manual? 0 Play Time 00:18:58 Cumulative 144.3 hours Start 2025.05.12 @ 22:41:31 End 2025.05.12 @ 23:01:39 Sessions 1 Manual Loads 0 Difficulty Rogue Special Mode None Game No. 98 Rogue 98 Adventurer 0 Explorer 0 Win Type - Total 6 Types 5/0/1/0/0/0/0/0/0/0 Lore% 53 Gallery% 56 Achievement% 52 Wizard Run 0 Options --------- Layout 0 ASCII 0 Keyboard 1 Movement Numpad Keybinds 0 Fullscreen 1 Font 24/Proggy Map View 76x56 Zoom Use 0% Tactical HUD 1 Map Filters NONE Filters NONE Steam 1 RUN: d9b32df7-51a4-459f-9b60-cef5c3fccfa1